bitfinex/quotes_ETHUSD_20250903
["timestamp","ask_amount","ask_price","bid_price","bid_amount"]
[1756911897642,0.0012,4470.8,4470.7,8.35604867]
[1756911898013,0.0012,4470.8,4470.7,4.46804867]
[1756911898213,0.0012,4470.8,4470.7,8.37741653]
[1756911898414,0.0012,4470.8,4470.7,8.35504867]
[1756911898660,0.0012,4470.8,4470.7,12.14704867]
[1756911900349,0.0012,4470.8,4470.7,8.26004867]
[1756911900928,0.0012,4470.8,4470.7,11.35504867]
[1756911901550,0.0012,4470.8,4470.7,7.46804867]
[1756911901756,0.0012,4470.8,4470.7,11.35404867]
[1756911903018,0.0012,4470.8,4470.7,12.14604867]
[1756911903459,0.0012,4470.8,4470.7,8.26004867]
[1756911903829,0.0012,4470.8,4470.7,12.14604867]
[1756911904624,0.0012,4470.8,4470.7,8.26004867]
[1756911904829,1e-08,4470.9,4470.8,6.02873615]
[1756911905067,1e-08,4470.9,4470.8,9.20170223]
[1756911905236,1e-08,4470.9,4470.8,9.50700223]
[1756911906762,1e-08,4470.9,4470.8,9.67766309]
[1756911907333,1e-08,4470.9,4470.8,9.78966309]
[1756911907750,0.002,4472.6,4472.1,6.02808595]
[1756911907964,0.002,4472.6,4472.1,12.4585103]
[1756911908167,0.002,4472.6,4472.1,14.0076103]
[1756911908536,0.002,4473.7,4473.2,2.23553608]
[1756911908886,0.002,4473.7,4473.2,10.83953608]
[1756911909052,0.002,4473.7,4473.2,11.14483608]
[1756911909240,0.002,4473.7,4473.2,12.48288057]
[1756911911980,0.2924,4473.3,4473.2,1.72]
[1756911912193,0.7465,4473.3,4473.2,7.83853608]
[1756911912659,0.002,4473.3,4473.2,7.83853608]
[1756911913487,0.002,4473.3,4473.2,12.27563608]
[1756911913994,0.002,4473.3,4473.2,13.06663608]
[1756911914283,0.002,4473.3,4473.2,10.71486303]
[1756911914452,0.002,4473.3,4473.2,14.59686303]
[1756911914776,0.002,4473.3,4473.2,10.71486303]
[1756911914981,0.002,4473.3,4473.2,14.59686303]
[1756911915192,0.002,4473.3,4473.2,14.68644679]
[1756911915392,0.002,4473.3,4473.2,10.80444679]
[1756911915609,0.002,4473.3,4473.2,13.89344679]
[1756911915889,0.002,4473.3,4473.2,14.68544679]
[1756911917786,0.002,4473.3,4473.2,14.8537066]
[1756911918467,0.027,4473.8,4473.7,2.23528622]
[1756911918786,0.002,4474.3,4474.2,2.23503643]
[1756911918984,0.002,4474.3,4474.2,7.83403643]
[1756911919146,0.002,4474.3,4474.2,3.95403643]
[1756911919147,0.7465,4474.3,4474.2,3.95403643]
[1756911919347,0.7465,4474.3,4474.2,7.83403643]
[1756911919548,0.7465,4474.3,4474.2,7.94603643]
[1756911919849,1.443,4474.3,4474.2,5.711]
[1756911920045,1.443,4474.3,4474.2,1.831]
[1756911920250,1.443,4474.3,4472.6,0.6941]
[1756911920251,1.443,4474.3,4474.0,3.88]
[1756911920488,1.1514,4474.2,4474.0,3.879]
[1756911920650,1.4418,4474.1,4474.0,3.879]
[1756911920850,1.4418,4474.1,4473.5,0.112]
[1756911921051,0.112,4474.0,4473.6,3.879]
[1756911921253,1.2634,4474.0,4473.6,3.879]
[1756911921548,1.2634,4474.0,4473.5,0.112]
[1756911921549,0.2904,4473.7,4473.5,0.112]
[1756911921768,0.2904,4473.7,4473.6,3.879]
[1756911921970,0.7445,4473.7,4473.6,3.879]
[1756911922177,1.4418,4473.7,4473.6,3.879]
[1756911922688,1.4418,4473.7,4473.5,0.112]
[1756911922884,0.7445,4473.7,4473.6,3.879]
[1756911923052,0.7445,4473.7,4473.5,0.112]
[1756911923256,0.7445,4473.7,4473.6,3.879]
[1756911923456,1.4418,4473.7,4473.6,3.879]
[1756911923853,1.4418,4473.7,4472.8,0.026]
[1756911924054,0.112,4473.4,4472.9,3.879]
[1756911924259,2.23549038,4473.3,4473.0,3.878]
[1756911924472,0.2904,4473.1,4473.0,3.878]
[1756911924786,1.4418,4473.1,4473.0,3.878]
[1756911925175,1.4418,4473.1,4472.8,0.026]
[1756911925518,0.2904,4473.1,4472.9,3.878]
[1756911925798,1.1534,4473.8,4473.4,2.23539382]
[1756911925799,0.002,4473.8,4473.4,2.23539382]
[1756911925972,0.2904,4473.5,4473.3,2.23546707]
[1756911926162,0.2904,4473.5,4472.8,0.26338758]
[1756911926163,0.4541,4473.4,4473.0,2.23559373]
[1756911926368,0.4541,4473.3,4473.0,2.48549186]
[1756911926598,0.2904,4473.1,4473.0,2.48549186]
[1756911926902,0.2904,4473.1,4473.0,6.36349186]
[1756911927270,0.7445,4473.1,4473.0,3.878]
[1756911927473,1.4418,4473.1,4473.0,3.878]
[1756911927672,1.4418,4473.1,4472.8,0.026]
[1756911927978,2.23568602,4472.9,4472.8,0.026]
[1756911928381,6.67748602,4472.9,4472.8,0.026]
[1756911928969,7.46948602,4472.9,4472.8,0.026]
[1756911932275,11.34648602,4472.9,4472.8,1e-08]
[1756911932480,3.02868612,4470.9,4470.8,0.025]
[1756911932672,0.792,4470.7,4470.1,0.001]
[1756911933011,6.31543629,4470.4,4470.1,0.001]
[1756911933415,7.46093629,4470.4,4470.1,0.001]
[1756911933912,11.33793629,4470.4,4470.1,0.001]
[1756911935112,3.2865,4470.4,4470.1,0.001]
[1756911935316,3.7603,4470.4,4470.1,0.001]
[1756911935615,6.10923629,4470.4,4470.1,0.001]
[1756911936212,3.3985,4470.4,4470.1,0.001]
[1756911936381,0.112,4470.4,4470.1,0.001]
[1756911936586,0.112,4470.5,4470.3,0.2902]
[1756911936816,0.112,4470.5,4470.3,0.9471]
[1756911936983,0.112,4470.5,4470.3,0.001]
[1756911937713,0.112,4470.5,4470.4,0.2892]
[1756911937895,0.112,4470.5,4470.3,0.001]
[1756911938528,0.112,4470.5,4470.4,0.9461]
[1756911938685,0.112,4471.1,4470.5,2.2368617]
[1756911938884,0.112,4471.1,4470.5,2.23688606]
[1756911939185,0.112,4471.1,4471.0,0.2892]
[1756911939711,0.112,4471.1,4471.0,0.9461]
[1756911940020,0.112,4471.1,4470.7,0.4655]
[1756911940186,0.112,4471.1,4470.8,0.6569]
[1756911940521,0.112,4471.1,4471.0,0.2892]
[1756911940925,7.159,4471.5,4471.0,3.64823609]
[1756911941085,7.271,4471.5,4471.1,1.1224]
[1756911941486,7.271,4471.5,4471.4,0.2892]
[1756911941930,0.025,4471.8,4471.5,2.23633963]
[1756911942223,0.025,4471.8,4471.7,2.23628597]
[1756911942409,0.025,4471.8,4471.7,2.52548597]
[1756911942724,0.025,4471.8,4471.7,1.4116]
[1756911942909,0.025,4471.8,4471.7,3.67024882]
[1756911943088,0.025,4471.8,4471.7,3.64788597]
[1756911943288,0.025,4471.8,4471.7,4.34624458]
[1756911943625,0.025,4471.8,4471.7,8.33424458]
[1756911944402,0.0242,4471.8,4471.7,8.33424458]
[1756911944904,0.0242,4471.8,4471.7,4.45824458]
[1756911945220,0.0242,4471.8,4471.7,8.33424458]
[1756911946450,0.0242,4471.8,4471.7,4.45824458]
[1756911946612,0.0242,4471.8,4471.7,8.35660743]
[1756911946812,0.0242,4471.8,4471.7,4.45824458]
[1756911947121,0.0242,4471.8,4471.7,8.33424458]
[1756911948344,0.0242,4471.8,4471.7,8.33324458]
[1756911949843,0.0242,4471.8,4471.7,4.45824458]
[1756911950017,0.0242,4471.8,4471.7,8.33324458]
[1756911950408,0.7845,4471.8,4471.7,0.112]
[1756911950610,0.7845,4471.8,4471.7,3.987]
[1756911950810,0.7845,4471.8,4471.7,3.986]
[1756911950811,0.3107,4471.8,4471.7,3.986]
[1756911951012,0.0242,4471.8,4471.7,3.986]
[1756911951221,0.0242,4471.8,4471.7,6.22228597]
[1756911951423,0.0242,4471.8,4471.7,6.51148597]
[1756911951623,0.0242,4471.8,4471.7,8.50867255]
[1756911952846,0.0242,4471.8,4471.7,4.16917255]
[1756911953051,0.0242,4471.8,4471.7,3.29438597]
[1756911953343,0.0242,4471.8,4471.7,7.16838597]
[1756911953715,0.0242,4471.8,4471.7,7.63388597]
[1756911954934,0.0242,4471.8,4471.7,3.75988597]
[1756911955231,0.0242,4471.8,4471.7,3.29438597]
[1756911955456,0.0242,4471.8,4471.7,7.16738597]
[1756911955651,0.0242,4471.8,4471.7,8.10776255]
[1756911956014,0.0242,4471.8,4471.7,4.23476255]
[1756911956220,0.0242,4471.8,4471.7,8.10776255]
[1756911957017,0.0242,4471.8,4471.7,3.28866255]
[1756911957214,0.7845,4471.8,4471.7,0.112]
[1756911957446,0.7845,4471.8,4471.7,3.985]
[1756911957646,0.7845,4471.8,4471.7,0.112]
[1756911957852,0.7845,4471.8,4471.7,3.872]
[1756911958452,1.4562,4471.8,4470.1,0.001]
[1756911958651,1.4562,4471.8,4470.7,0.112]
[1756911958652,0.112,4471.3,4470.7,0.112]
[1756911958855,0.3985,4470.8,4470.3,0.001]
[1756911959052,2.23680792,4470.7,4470.3,3.873]
[1756911959223,0.2865,4470.4,4470.3,0.001]
[1756911959553,0.3985,4470.4,4470.3,0.001]
[1756911959753,1.516,4470.4,4470.3,0.001]
[1756911960051,0.8459,4470.4,4470.3,0.001]
[1756911963161,3.08283629,4470.4,4470.3,0.001]
[1756911963518,0.8459,4470.4,4470.3,0.001]
[1756911965525,0.3985,4470.4,4470.3,0.001]
[1756911966781,0.8459,4470.4,4470.3,0.001]
[1756911966937,0.3985,4470.4,4470.3,0.001]
[1756911968859,0.3977,4470.4,4470.3,0.001]
[1756911969777,2.68378803,4471.5,4470.3,4.00277318]
[1756911969937,2.23654155,4471.2,4470.3,4.00277318]
[1756911970133,0.4474,4471.2,4470.3,0.9447]
[1756911970336,2.2366342,4471.1,4470.3,0.9447]
[1756911970585,0.4474,4471.2,4470.4,3.871]
[1756911970896,7.159,4471.3,4471.1,0.3027]
[1756911971053,0.4474,4472.1,4471.1,4.1727]
[1756911971392,3.4474,4472.1,4471.2,0.641]
[1756911971567,3.0,4472.0,4471.2,0.641]
[1756911971767,2.26243603,4471.8,4471.2,0.641]
[1756911971978,2.23628635,4471.7,4471.2,0.641]
[1756911972169,2.23628635,4471.7,4471.3,3.87]
[1756911972366,0.0262,4471.8,4471.3,3.87]
[1756911972573,0.0262,4471.8,4471.4,0.641]
[1756911972871,0.0262,4471.8,4471.7,2.53898597]
[1756911973089,0.0262,4471.8,4471.7,6.40898597]
[1756911973391,0.0262,4471.8,4471.7,7.48378597]
[1756911975698,0.0262,4471.8,4471.7,3.61378597]
[1756911975875,0.0262,4471.8,4471.7,7.50514882]
[1756911976080,0.0262,4471.8,4471.7,8.67838581]
[1756911976807,0.0262,4471.8,4471.7,9.47038581]
[1756911978105,1e-08,4471.8,4471.7,9.47038581]
[1756911978313,1e-08,4471.8,4471.7,8.60138581]
[1756911978609,1e-08,4471.8,4471.7,12.46938581]
[1756911979393,1e-08,4471.8,4471.7,5.60138581]
[1756911979585,1e-08,4471.8,4471.7,9.46938581]
[1756911979769,1e-08,4471.8,4471.7,5.60138581]
[1756911979970,1e-08,4471.8,4471.7,9.58138581]
[1756911980508,1e-08,4471.8,4471.7,9.58038581]
[1756911983712,1e-08,4471.8,4471.7,9.46838581]
[1756911983918,1e-08,4471.8,4471.7,9.58038581]
[1756911984413,1e-08,4471.8,4471.7,4.48758581]
[1756911984790,1e-08,4471.8,4471.7,7.71258581]
[1756911984987,1e-08,4471.8,4471.7,8.35358581]
[1756911985184,1e-08,4471.8,4471.7,8.78738581]
[1756911985583,1e-08,4471.8,4471.7,9.57938581]
[1756911986291,1e-08,4471.8,4471.7,9.14558581]
[1756911986515,1e-08,4471.8,4471.7,9.57938581]
[1756911988084,1e-08,4471.8,4471.7,4.48758581]
[1756911988286,1e-08,4471.8,4471.7,7.71158581]
[1756911988586,1e-08,4471.8,4471.7,8.78638581]
[1756911988982,1e-08,4471.8,4471.7,8.35258581]
[1756911989188,1e-08,4471.8,4471.7,7.71158581]
[1756911989388,1e-08,4471.8,4471.7,3.84658581]
[1756911989590,1e-08,4471.8,4471.7,8.83364866]
[1756911989926,1e-08,4471.8,4471.7,8.35258581]
[1756911990423,1e-08,4471.8,4471.7,7.71058581]
[1756911990930,1e-08,4471.8,4471.7,8.36628581]
[1756911991229,0.28770001,4471.8,4471.7,3.54388581]
[1756911991425,0.28770001,4471.8,4471.7,7.40788581]
[1756911992020,1e-08,4471.8,4471.7,7.40788581]
[1756911992734,1e-08,4471.8,4471.7,7.71518581]
[1756911993029,1e-08,4471.8,4471.7,0.112]
[1756911993030,1.39970001,4471.8,4471.7,0.112]
[1756911993231,1.39890001,4471.8,4471.7,3.976]
[1756911993432,0.72000001,4471.8,4471.7,3.976]
[1756911993728,1.39890001,4471.8,4471.7,3.975]
[1756911994117,1.39890001,4471.8,4471.7,0.112]
[1756911994433,1.39890001,4471.8,4470.9,1.719]
[1756911994619,1.39890001,4471.8,4470.9,3.863]
[1756911994620,2.23663609,4471.0,4470.9,3.863]
[1756911994930,1.3997,4471.0,4470.9,3.863]
[1756911995135,0.6789,4471.7,4470.9,3.863]
[1756911995295,0.4331,4471.6,4470.9,3.863]
[1756911995628,0.2877,4471.0,4470.8,0.025]
[1756911995833,0.2877,4471.0,4470.9,3.863]
[1756911996139,0.002,4471.8,4470.9,6.12205298]
[1756911996321,0.002,4471.8,4471.2,2.23652137]
[1756911996633,2.66938662,4471.7,4471.2,1.719]
[1756911996797,2.23638747,4471.5,4471.2,1.719]
[1756911996993,0.2877,4471.3,4471.2,1.719]
[1756911997228,0.7208,4471.3,4471.2,5.582]
[1756911999329,0.7208,4471.3,4471.2,1.719]
[1756911999523,0.7208,4471.3,4471.2,5.582]
[1756911999708,0.66027215,4471.3,4471.2,1.719]
[1756911999909,0.66027215,4471.3,4471.2,5.582]
[1756912000319,0.66027215,4471.3,4471.2,1.719]
[1756912000504,0.66027215,4471.3,4471.2,5.582]
[1756912001042,0.002,4471.8,4471.2,5.582]
[1756912001236,2.23824488,4471.8,4471.3,3.863]
[1756912001545,0.2877,4471.4,4471.2,1.719]
[1756912001747,0.2877,4471.4,4471.3,3.862]
[1756912002132,0.002,4471.8,4471.3,3.862]
[1756912002318,0.002,4471.8,4471.7,2.54358597]
[1756912002514,0.002,4471.8,4471.7,6.40558597]
[1756912002728,0.002,4471.8,4471.7,7.51998597]
[1756912003442,0.002,4471.8,4471.7,6.40558597]
[1756912003644,0.002,4471.8,4471.7,7.51998597]
[1756912003847,0.002,4471.8,4471.7,8.49562273]
[1756912004060,0.002,4471.8,4471.7,4.63362273]
[1756912004221,0.002,4471.8,4471.7,8.49562273]
[1756912005138,0.002,4471.8,4471.7,8.60762273]
[1756912005932,0.002,4471.8,4471.7,4.74562273]
[1756912006145,0.002,4471.8,4471.7,8.60762273]
[1756912006542,0.002,4471.8,4471.7,9.39962273]
[1756912006740,0.002,4471.8,4471.7,9.39862273]
[1756912007164,0.002,4471.8,4471.7,5.53762273]
[1756912007369,0.002,4471.8,4471.7,9.39862273]
[1756912008485,0.002,4471.8,4471.7,8.14792273]
[1756912008839,0.002,4471.8,4471.7,8.60662273]
[1756912009786,0.002,4471.8,4471.7,7.49222273]
[1756912009944,0.2897,4471.8,4471.7,3.32392273]
[1756912010146,0.2897,4471.8,4471.7,6.20828597]
[1756912010557,0.002,4471.8,4471.7,6.20828597]
[1756912011750,0.2897,4471.8,4471.7,6.20828597]
[1756912012373,0.7228,4471.8,4471.7,6.20828597]
[1756912012579,0.002,4471.8,4471.7,6.20828597]
[1756912013080,0.2897,4471.8,4471.7,6.20828597]
[1756912013277,0.002,4471.8,4471.7,7.90375316]
[1756912013489,0.002,4471.8,4471.7,8.47445316]
[1756912013658,0.002,4471.8,4471.7,8.01575316]
[1756912014283,0.002,4471.8,4471.7,7.36005316]
[1756912014582,0.2897,4471.8,4471.7,3.19275316]
[1756912014768,0.2897,4471.8,4471.7,6.20728597]
[1756912014968,0.002,4471.8,4471.7,6.20728597]
[1756912015175,0.002,4471.8,4471.7,7.17028597]
[1756912015372,0.002,4471.8,4471.7,6.51458597]
[1756912015569,0.002,4471.8,4471.7,6.20728597]
[1756912015770,0.2897,4471.8,4471.7,3.23862316]
[1756912015986,0.2897,4471.8,4471.7,6.20728597]
[1756912016197,0.7228,4471.8,4471.7,2.34828597]
[1756912016587,0.7228,4471.8,4471.7,0.112]
[1756912016900,0.7228,4471.8,4471.7,3.971]
[1756912017066,0.7228,4471.8,4471.7,6.20728597]
[1756912017893,0.0012,4471.8,4471.7,0.112]
[1756912018058,0.0012,4471.8,4471.7,7.05728597]
[1756912018254,0.0012,4471.8,4471.7,8.1446227]
[1756912018454,0.0012,4471.8,4471.7,8.6033227]
[1756912019082,0.0012,4471.8,4471.7,8.1446227]
[1756912019281,0.0012,4471.8,4471.7,7.4889227]
[1756912019660,0.0012,4471.8,4471.7,8.1234227]
[1756912019860,0.0012,4471.8,4471.7,4.2654227]
[1756912020186,0.0012,4471.8,4471.7,7.4889227]
[1756912020379,0.3031,4471.8,4471.7,3.97]
[1756912020569,0.7594,4471.8,4471.7,3.97]
[1756912020888,0.7594,4471.8,4471.7,6.20628597]
[1756912021058,0.7594,4471.8,4471.7,0.112]
[1756912021259,0.7594,4471.8,4471.6,0.001]
[1756912021260,1.4105,4471.8,4471.6,0.001]
[1756912021478,0.7594,4471.8,4471.7,3.858]
[1756912021706,2.99563596,4471.8,4471.7,3.858]
[1756912021860,2.99563596,4471.8,4471.6,0.001]
[1756912022290,2.99563596,4471.8,4471.7,3.857]
[1756912022591,3.75873596,4471.8,4471.7,3.857]
[1756912022909,2.23628597,4471.7,4471.6,0.001]
[1756912023222,2.88738597,4471.7,4471.6,0.001]
[1756912023357,6.64558597,4471.7,4471.6,0.001]
[1756912023557,6.64558597,4471.7,4471.6,3.609]
[1756912023758,6.64558597,4471.7,4471.6,3.858]
[1756912024155,0.002,4472.3,4471.6,3.858]
[1756912024359,0.002,4472.3,4471.7,0.6345]
[1756912024592,0.002,4472.3,4472.2,2.34803595]
[1756912024794,0.002,4472.3,4472.2,5.688]
[1756912024995,0.002,4472.3,4472.2,6.3225]
[1756912025194,0.002,4472.3,4472.2,9.49748595]
[1756912025489,0.002,4472.3,4472.2,9.94118595]
[1756912025891,0.002,4472.3,4472.2,7.26145]
[1756912026058,0.3039,4472.3,4472.2,1.831]
[1756912026260,3.75928595,4472.3,4472.2,1.719]
[1756912026461,3.75928595,4472.3,4472.2,5.144]
[1756912026888,0.8722,4472.3,4472.2,5.144]
[1756912027113,3.75928595,4472.3,4472.2,1.719]
[1756912027283,1.5233,4472.3,4472.2,3.62]
[1756912027618,1.5233,4472.3,4472.2,5.576]
[1756912027619,3.75928595,4472.3,4472.2,5.576]
[1756912027790,3.75928595,4472.3,4471.6,0.001]
[1756912027791,2.23628597,4471.7,4471.6,0.001]
[1756912028200,6.64558597,4471.7,4471.6,0.001]
[1756912028696,6.75758597,4471.7,4471.6,0.001]
[1756912029199,7.54958597,4471.7,4471.6,0.001]
[1756912029400,6.75758597,4471.7,4471.6,0.001]
[1756912030990,6.10648597,4471.7,4471.6,0.001]
[1756912031395,6.10648597,4471.7,4471.6,3.858]
[1756912031691,6.10648597,4471.7,4471.6,0.001]
[1756912031892,6.75758597,4471.7,4471.6,0.001]
[1756912032211,18.14962984,4471.7,4471.6,0.001]
[1756912032410,18.94162984,4471.7,4471.6,0.001]
[1756912032612,0.792,4471.5,4469.9,1.721]
[1756912032927,0.792,4471.5,4470.1,2.165]
[1756912032928,2.34893629,4470.4,4470.1,2.165]
[1756912033085,5.65083629,4470.4,4470.1,2.165]
[1756912033393,6.10713629,4470.4,4470.1,2.165]
[1756912034010,6.10713629,4470.4,4470.1,0.001]
[1756912034319,5.65083629,4470.4,4470.1,0.001]
[1756912035505,3.112,4470.4,4470.1,0.001]
[1756912035706,0.112,4470.4,4470.1,0.001]
[1756912035906,2.65083629,4470.4,4470.3,3.858]
[1756912036304,3.10713629,4470.4,4470.3,3.858]
[1756912036617,2.34893629,4470.4,4470.3,3.858]
[1756912036818,2.65083629,4470.4,4470.3,3.858]
[1756912037130,0.112,4470.4,4470.3,3.858]
[1756912037807,2.34893629,4470.4,4470.3,3.858]
[1756912038008,0.112,4470.4,4470.3,3.858]
[1756912038209,0.112,4470.7,4470.3,0.9422]
[1756912038449,0.112,4470.7,4470.4,3.857]
[1756912038949,2.23693629,4470.4,4470.3,0.001]
[1756912039247,5.34893629,4470.4,4470.3,3.858]
[1756912039419,2.65083629,4470.4,4470.3,0.001]
[1756912039628,2.65083629,4470.4,4470.3,3.858]
[1756912040215,0.112,4470.4,4470.3,3.858]
[1756912040632,2.65083629,4470.4,4470.3,3.858]
[1756912041030,0.4139,4470.4,4470.3,3.858]
[1756912041233,2.65083629,4470.4,4470.3,3.858]
[1756912041540,0.4139,4470.4,4470.3,3.858]
[1756912042240,2.65003629,4470.4,4470.3,3.858]
[1756912042640,2.65003629,4470.4,4470.3,0.001]
[1756912042944,2.34813629,4470.4,4470.3,3.858]
[1756912043111,0.4563,4471.7,4470.3,5.2429]
[1756912043311,0.112,4470.9,4470.3,5.3549]
[1756912045136,0.025,4471.8,4470.7,0.112]
[1756912045443,0.112,4471.5,4470.8,6.6552]
[1756912045776,0.112,4471.5,4470.8,2.7982]
[1756912045943,2.23643601,4471.4,4470.9,3.857]
[1756912046145,2.23643601,4471.4,4470.8,2.7982]
[1756912046146,2.23650342,4471.3,4471.0,1.0782]
[1756912046348,2.23650342,4471.3,4471.1,3.857]
[1756912046927,2.23650342,4471.3,4471.0,0.6345]
[1756912047131,2.2364484,4471.4,4471.2,3.857]
[1756912047652,0.112,4471.5,4470.8,1.72]
[1756912047653,0.3019,4471.3,4470.8,1.72]
[1756912047831,2.34853605,4471.2,4470.9,3.856]
[1756912048153,2.23659915,4471.1,4470.8,1.72]
[1756912048528,2.23673615,4470.8,4470.3,0.001]
[1756912048730,2.34873615,4470.8,4470.4,5.576]
[1756912048928,0.112,4470.8,4470.5,3.856]
[1756912049314,2.23682242,4470.7,4470.5,3.856]
[1756912049517,2.23682242,4470.7,4470.4,1.72]
[1756912050024,0.112,4470.8,4470.5,3.856]
[1756912050025,2.34873869,4470.8,4470.5,3.856]
[1756912050221,2.23688625,4470.5,4470.3,0.001]
[1756912050524,2.23688625,4470.5,4470.4,3.961]
[1756912050727,2.98458625,4470.5,4470.4,1.72]
[1756912050937,3.09658625,4470.5,4470.4,1.72]
[1756912051136,3.09658625,4470.5,4470.4,5.576]
[1756912052055,3.09658625,4470.5,4470.4,1.72]
[1756912052260,6.09658625,4470.5,4470.4,1.72]
[1756912052426,6.09658625,4470.5,4470.4,5.576]
[1756912053046,3.112,4470.5,4470.4,5.576]
[1756912053265,2.34877142,4470.8,4470.4,6.9598]
[1756912053451,2.34877142,4470.8,4470.5,1.0967]
[1756912053763,2.34877142,4470.8,4470.4,5.8631]
[1756912053764,0.114,4471.5,4470.7,0.3991]
[1756912053923,0.002,4471.5,4471.2,0.112]
[1756912054128,0.002,4471.5,4471.4,0.2871]
[1756912054528,0.002,4471.5,4471.4,1.3838]
[1756912054729,0.002,4471.5,4471.4,3.62023601]
[1756912055858,0.002,4471.5,4471.4,1.3838]
[1756912056025,0.002,4471.5,4471.4,5.2388]
[1756912056427,0.002,4471.5,4471.4,1.3838]
[1756912056733,0.8617,4471.5,4471.3,1.72]
[1756912056937,2.67393601,4471.4,4471.3,1.72]
[1756912057166,2.54663601,4471.4,4471.3,5.575]
[1756912057532,0.114,4471.5,4471.3,6.5266]
[1756912057732,2.350386,4471.5,4471.4,0.6645]
[1756912057932,2.350386,4471.5,4471.3,1.72]
[1756912058127,0.114,4471.5,4471.4,4.1421]
[1756912058359,0.114,4471.5,4471.4,4.8066]
[1756912058727,0.002,4471.5,4471.4,5.3508]
[1756912058940,0.002,4471.5,4471.4,7.58723601]
[1756912059952,0.002,4471.5,4471.4,3.73223601]
[1756912060156,0.002,4471.5,4471.4,7.58723601]
[1756912060527,0.002,4471.5,4471.4,8.74161125]
[1756912061268,0.002,4471.5,4471.4,7.58623601]
[1756912061439,0.002,4471.5,4471.4,3.73223601]
[1756912061640,0.002,4471.5,4471.4,1.0636]
[1756912061863,0.002,4471.5,4471.4,3.966]
[1756912062164,0.002,4471.5,4471.4,3.854]
[1756912062748,0.002,4471.5,4471.4,4.1411]
[1756912063466,0.002,4471.5,4471.4,0.9516]
[1756912063854,0.002,4471.5,4471.4,0.2871]
[1756912064058,0.002,4471.5,4471.4,4.8056]
[1756912064381,0.002,4471.5,4471.4,7.47423601]
[1756912064746,0.002,4471.5,4471.4,7.58623601]
[1756912065067,0.002,4471.5,4471.4,8.740513]
[1756912066852,0.0012,4471.5,4471.4,7.58623601]
[1756912068949,0.0012,4471.5,4471.4,7.58523601]
[1756912069887,0.0012,4471.5,4471.4,7.15303601]
[1756912070484,0.3114,4471.5,4471.4,0.112]
[1756912070661,0.3114,4471.5,4471.4,3.965]
[1756912070845,0.3114,4471.5,4471.4,3.964]
[1756912071045,2.985286,4471.5,4471.4,0.112]
[1756912071247,2.23667004,4471.0,4470.9,1.72]
[1756912071444,3.75827004,4471.0,4470.9,5.438]
[1756912071753,3.75827004,4471.0,4470.9,5.338]
[1756912072284,3.75827004,4471.0,4470.9,1.62]
[1756912072495,1.5216,4471.0,4470.3,0.001]
[1756912072791,1.5216,4471.0,4470.3,1.721]
[1756912072792,2.34893629,4470.4,4470.3,1.721]
[1756912072977,2.65913629,4470.4,4470.3,4.232]
[1756912073180,2.65913629,4470.4,4470.3,1.721]
[1756912073181,3.09663629,4470.4,4470.3,1.721]
[1756912073379,3.09663629,4470.4,4470.3,5.573]
[1756912074269,0.8597,4470.4,4470.3,5.573]
[1756912074591,2.65913629,4470.4,4470.3,5.573]
[1756912075492,2.65913629,4470.4,4470.3,1.721]
[1756912075677,2.65913629,4470.4,4470.3,5.573]
[1756912076356,3.09663629,4470.4,4470.3,5.573]
[1756912076556,3.09663629,4470.4,4470.3,1.721]
[1756912076770,3.09663629,4470.4,4470.3,5.573]
[1756912079099,3.09663629,4470.4,4470.3,1.721]
[1756912079311,3.09663629,4470.4,4470.3,5.573]
[1756912080090,2.65913629,4470.4,4470.3,5.573]
[1756912080256,0.112,4470.6,4470.3,5.8874]
[1756912080460,2.23693629,4470.4,4470.3,1.721]
[1756912080659,0.112,4470.6,4470.3,5.573]
[1756912081171,2.23688851,4470.5,4470.4,3.852]
[1756912081388,0.304,4470.5,4470.4,3.852]
[1756912081798,0.304,4470.5,4470.3,1.721]
[1756912081969,2.23693629,4470.4,4470.3,1.721]
[1756912082291,2.54093629,4470.4,4470.3,5.573]
[1756912082461,3.01543629,4470.4,4470.3,1.721]
[1756912082657,3.01543629,4470.4,4470.3,3.853]
[1756912082865,3.01543629,4470.4,4470.3,3.852]
[1756912083100,10.17443629,4470.4,4470.3,3.852]
[1756912083394,10.17443629,4470.4,4470.3,0.001]
[1756912083596,7.463,4470.4,4470.3,3.852]
[1756912083760,7.271,4470.4,4470.3,4.1664]
[1756912083965,7.159,4470.4,4470.3,4.7915]
[1756912084280,0.112,4471.1,4470.4,2.23692673]
[1756912084459,2.34862623,4471.1,4471.0,0.3144]
[1756912084661,0.0012,4471.5,4471.0,0.3144]
[1756912084662,0.0012,4471.5,4471.0,6.5105]
[1756912084856,0.112,4471.3,4471.0,2.6595]
[1756912085062,0.0012,4471.5,4471.1,4.9368]
[1756912085397,0.0012,4471.5,4471.2,3.851]
[1756912085564,0.0012,4471.5,4471.4,0.3144]
[1756912085899,0.0012,4471.5,4471.4,2.66283601]
[1756912086069,0.0012,4471.5,4471.4,8.1981531]
[1756912086275,0.0012,4471.5,4471.4,4.3471531]
[1756912086475,0.0012,4471.5,4471.4,8.1981531]
[1756912086685,0.0012,4471.5,4471.4,8.8781531]